bitfinex-derivatives/quotes_BNBF0:USTF0_20260114
["timestamp","ask_amount","ask_price","bid_price","bid_amount"]
[1768434973320,0.76813102,948.56,947.84,0.1832693]
[1768434973521,0.76813102,948.55,947.84,0.1832693]
[1768434973721,0.76813102,948.54,947.84,0.1832693]
[1768434973919,0.76813102,948.53,947.84,0.1832693]
[1768434974222,0.76813102,948.52,947.84,0.1832693]
[1768434974424,0.76813102,948.51,947.84,0.1832693]
[1768434974623,0.76813102,948.5,947.84,0.1832693]
[1768434974922,0.76813102,948.49,947.84,0.1832693]
[1768434975120,0.76813102,948.48,947.84,0.1832693]
[1768434975323,0.76813102,948.47,947.84,0.1832693]
[1768434975524,0.76813102,948.46,947.84,0.1832693]
[1768434975723,0.76813102,948.45,947.84,0.1832693]
[1768434976023,0.76813102,948.44,947.84,0.1832693]
[1768434976320,0.76813102,948.43,947.84,0.1832693]
[1768434976524,0.76813102,948.42,947.84,0.1832693]
[1768434976723,0.76813102,948.41,947.84,0.1832693]
[1768434977024,0.76813102,948.4,947.84,0.1832693]
[1768434977322,0.76813102,948.39,947.84,0.1832693]
[1768434977519,0.76813102,948.38,947.84,0.1832693]
[1768434977723,0.76813102,948.37,947.84,0.1832693]
[1768434977924,0.76813102,948.36,947.84,0.1832693]
[1768434978126,0.76813102,948.35,947.84,0.1832693]
[1768434978321,0.76813102,948.34,947.43,2.61605998]
[1768434978521,0.76813102,948.33,947.43,2.61605998]
[1768434978724,0.76813102,948.32,947.43,2.61605998]
[1768434978924,0.76813102,948.31,947.43,2.61605998]
[1768434979125,0.76813102,948.3,947.43,2.61605998]
[1768434979325,0.76813102,948.29,947.43,2.61605998]
[1768434979524,0.76813102,948.28,947.43,2.61605998]
[1768434979720,0.76813102,948.27,947.43,2.61605998]
[1768434979924,0.76813102,948.26,947.43,2.61605998]
[1768434980122,0.76813102,948.25,947.43,2.61605998]
[1768434980322,2.45,948.64,947.43,2.61605998]
[1768434980525,0.76824404,948.63,947.43,2.61605998]
[1768434980723,0.76824404,948.62,947.73,0.18337891]
[1768434981024,0.76824404,948.61,947.73,0.18337891]
[1768434981223,0.76824404,948.6,947.73,0.18337891]
[1768434981524,0.76824404,948.59,947.73,0.18337891]
[1768434981828,0.76824404,948.58,947.73,0.18337891]
[1768434982027,0.76824404,948.57,947.73,0.18337891]
[1768434982327,0.76824404,948.56,947.73,0.18337891]
[1768434982523,2.45,948.64,947.73,0.18337891]
[1768434982524,0.76824404,948.55,947.73,0.18337891]
[1768434982728,0.76824404,948.54,947.73,0.18337891]
[1768434982929,0.76824404,948.53,947.73,0.18337891]
[1768434983126,0.76824404,948.52,947.73,0.18337891]
[1768434983327,0.76824404,948.51,947.73,0.18337891]
[1768434983630,0.76824404,948.5,947.73,0.18337891]
[1768434983926,0.76824404,948.49,947.73,0.18337891]
[1768434984127,0.76824404,948.48,947.73,0.18337891]
[1768434984331,0.76824404,948.47,947.73,0.18337891]
[1768434984531,0.76824404,948.46,947.73,0.18337891]
[1768434984830,0.76824404,948.45,947.73,0.18337891]
[1768434985030,0.76824404,948.44,947.73,0.18337891]
[1768434985230,0.76824404,948.43,947.73,0.18337891]
[1768434985530,0.76824404,948.42,947.73,0.18337891]
[1768434985729,0.76824404,948.41,947.73,0.18337891]
[1768434985932,0.76824404,948.4,947.73,0.18337891]
[1768434986129,0.76824404,948.39,947.73,0.18337891]
[1768434986329,0.76824404,948.38,947.73,0.18337891]
[1768434986527,0.76824404,948.37,947.73,0.18337891]
[1768434986727,0.76824404,948.36,947.73,0.18337891]
[1768434986929,0.76824404,948.35,947.73,0.18337891]
[1768434987133,0.76824404,948.34,947.73,0.18337891]
[1768434987333,0.76824404,948.33,947.73,0.18337891]
[1768434987634,0.76824404,948.32,947.73,0.18337891]
[1768434987834,0.76824404,948.31,947.73,0.18337891]
[1768434988033,0.76824404,948.3,947.73,0.18337891]
[1768434988232,0.76824404,948.29,947.73,0.18337891]
[1768434988432,0.76824404,948.28,947.42,2.61605998]
[1768434988634,0.76824404,948.27,947.42,2.61605998]
[1768434988833,0.76824404,948.26,947.42,2.61605998]
[1768434989034,0.76824404,948.25,947.42,2.61605998]
[1768434989334,2.45,948.64,947.62,0.18339776]
[1768434989535,0.7682243,948.63,947.42,2.61605998]
[1768434989830,0.7682243,948.62,947.42,2.61605998]
[1768434990031,0.7682243,948.61,947.42,2.61605998]
[1768434990331,0.7682243,948.6,947.42,2.61605998]
[1768434990534,0.7682243,948.59,947.42,2.61605998]
[1768434990730,0.7682243,948.58,947.71,0.18338133]
[1768434990934,0.7682243,948.57,947.71,0.18338133]
[1768434991234,0.7682243,948.56,947.71,0.18338133]
[1768434991537,0.7682243,948.55,947.71,0.18338133]
[1768434991834,0.7682243,948.54,947.71,0.18338133]
[1768434992035,0.7682243,948.53,947.71,0.18338133]
[1768434992230,0.7682243,948.52,947.71,0.18338133]
[1768434992434,0.7682243,948.51,947.71,0.18338133]
[1768434992631,0.7682243,948.5,947.71,0.18338133]
[1768434992936,2.45,948.64,947.71,0.18338133]
[1768434993130,0.76800692,948.63,947.71,0.18338133]
[1768434993330,0.76800692,948.62,947.71,0.18338133]
[1768434993532,0.76800692,948.61,947.71,0.18338133]
[1768434993730,0.1527753,948.6,947.71,0.18338133]
[1768434993929,2.45,948.64,947.71,0.18338133]
[1768435005843,0.75575037,948.63,947.71,0.18338133]
[1768435006038,0.75575037,948.62,947.71,0.18338133]
[1768435006239,0.75575037,948.61,947.71,0.18338133]
[1768435006441,0.75575037,948.6,947.71,0.18338133]
[1768435006639,0.75575037,948.59,947.71,0.18338133]
[1768435006843,0.75575037,948.58,947.71,0.18338133]
[1768435007144,0.75575037,948.57,947.71,0.18338133]
[1768435007439,0.01151053,949.59,947.71,0.18338133]
[1768435007440,0.75575037,948.56,947.71,0.18338133]
[1768435007744,0.75575037,948.55,947.71,0.18338133]
[1768435007944,0.75575037,948.54,947.71,0.18338133]
[1768435008144,0.75575037,948.53,947.71,0.18338133]
[1768435008344,0.00825977,949.48,947.71,0.18338133]
[1768435008539,1.43914584,949.47,947.71,0.18338133]
[1768435008843,1.43914584,949.46,947.71,0.18338133]
[1768435009044,1.43914584,949.45,947.71,0.18338133]
[1768435009344,1.43914584,949.44,947.71,0.18338133]
[1768435009544,1.43914584,949.43,947.71,0.18338133]
[1768435009846,1.43914584,949.42,947.71,0.18338133]
[1768435010043,1.43914584,949.41,947.71,0.18338133]
[1768435010247,1.43914584,949.4,947.71,0.18338133]
[1768435010443,1.43914584,949.39,947.71,0.18338133]
[1768435010746,1.43914584,949.38,947.71,0.18338133]
[1768435010942,1.43914584,949.37,947.71,0.18338133]
[1768435011140,1.43914584,949.36,947.71,0.18338133]
[1768435011341,1.43914584,949.35,947.71,0.18338133]
[1768435011545,1.43914584,949.34,947.71,0.18338133]
[1768435011747,1.43914584,949.33,947.71,0.18338133]
[1768435011944,1.43914584,949.32,947.71,0.18338133]
[1768435012146,1.43914584,949.31,947.71,0.18338133]
[1768435012343,1.43914584,949.3,947.71,0.18338133]
[1768435012547,1.43914584,949.29,947.71,0.18338133]
[1768435012749,1.43914584,949.28,947.71,0.18338133]
[1768435012946,1.43914584,949.27,947.71,0.18338133]
[1768435013248,1.43914584,949.26,947.71,0.18338133]
[1768435013448,1.43914584,949.25,947.71,0.18338133]
[1768435013746,1.43914584,949.24,947.71,0.18338133]
[1768435013945,1.43914584,949.23,947.71,0.18338133]
[1768435014149,1.43914584,949.22,947.71,0.18338133]
[1768435014349,0.75579398,949.21,947.71,0.18338133]
[1768435014549,0.75579398,949.2,947.71,0.18338133]
[1768435014750,0.75579398,949.19,947.71,0.18338133]
[1768435014946,0.75579398,949.18,947.71,0.18338133]
[1768435015147,0.75579398,949.17,947.71,0.18338133]
[1768435015450,0.75579398,949.16,947.71,0.18338133]
[1768435015647,0.75579398,949.15,947.71,0.18338133]
[1768435015851,0.75579398,949.14,947.71,0.18338133]
[1768435016048,0.75579398,949.13,947.71,0.18338133]
[1768435016352,0.75579398,949.12,947.71,0.18338133]
[1768435016551,1.767,949.4,947.71,0.18338133]
[1768435016552,0.75579398,949.11,947.71,0.18338133]
[1768435016753,0.75579398,949.1,947.71,0.18338133]
[1768435017054,0.75579398,949.09,947.71,0.18338133]
[1768435017252,0.75579398,949.08,947.71,0.18338133]
[1768435017448,0.75579398,949.07,947.71,0.18338133]
[1768435017649,0.75579398,949.06,947.71,0.18338133]
[1768435017853,0.75579398,949.05,947.71,0.18338133]
[1768435018153,0.75579398,949.04,947.71,0.18338133]
[1768435018349,0.75579398,949.03,947.71,0.18338133]
[1768435018653,0.75579398,949.02,947.71,0.18338133]
[1768435018853,0.75579398,949.01,947.71,0.18338133]
[1768435019154,0.75579398,949.0,947.71,0.18338133]
[1768435019454,0.75579398,948.99,947.71,0.18338133]
[1768435019755,0.75579398,948.98,947.71,0.18338133]
[1768435019954,0.75579398,948.97,947.71,0.18338133]
[1768435020151,0.75579398,948.96,947.71,0.18338133]
[1768435020454,0.75579398,948.95,947.71,0.18338133]
[1768435020657,0.75579398,948.94,947.71,0.18338133]
[1768435020857,0.75608899,948.93,947.71,0.18338133]
[1768435021155,0.75608899,948.92,947.71,0.18338133]
[1768435021355,0.75608899,948.91,947.71,0.18338133]
[1768435021551,0.75608899,948.9,947.71,0.18338133]
[1768435021756,0.75608899,948.89,947.71,0.18338133]
[1768435022055,0.75608899,948.88,947.71,0.18338133]
[1768435022256,0.75608899,948.87,947.71,0.18338133]
[1768435022456,0.75608899,948.86,947.71,0.18338133]
[1768435022653,0.75608899,948.85,947.71,0.18338133]
[1768435022852,0.75608899,948.84,947.71,0.18338133]
[1768435023052,0.75608899,948.83,947.71,0.18338133]
[1768435023254,0.75608899,948.82,947.71,0.18338133]
[1768435023456,0.75608899,948.81,947.71,0.18338133]
[1768435023656,0.75608899,948.8,947.71,0.18338133]
[1768435023856,0.75608899,948.79,947.71,0.18338133]
[1768435024151,0.75608899,948.78,947.71,0.18338133]
[1768435024352,1.767,949.4,947.71,0.18338133]
[1768435024553,1.43998438,949.39,947.71,0.18338133]
[1768435024855,1.43998438,949.38,947.71,0.18338133]
[1768435025052,1.43998438,949.37,947.71,0.18338133]
[1768435025250,1.767,949.4,947.71,0.18338133]
[1768435025251,1.43998438,949.36,947.71,0.18338133]
[1768435025452,1.43998438,949.35,947.71,0.18338133]
[1768435025654,1.43998438,949.34,947.71,0.18338133]
[1768435025856,1.43998438,949.33,947.71,0.18338133]
[1768435026051,1.43998438,949.32,947.71,0.18338133]
[1768435026252,1.43998438,949.31,947.71,0.18338133]
[1768435026553,1.43998438,949.3,947.71,0.18338133]
[1768435026757,1.43998438,949.29,947.71,0.18338133]
[1768435026952,1.43998438,949.28,947.71,0.18338133]
[1768435027152,1.767,949.4,947.71,0.18338133]
[1768435027153,1.43998438,949.27,947.71,0.18338133]
[1768435027356,1.43998438,949.26,947.71,0.18338133]
[1768435027556,1.43998438,949.25,947.71,0.18338133]
[1768435027856,1.43998438,949.24,947.71,0.18338133]
[1768435028055,1.43998438,949.23,947.71,0.18338133]
[1768435028257,1.43998438,949.22,947.71,0.18338133]
[1768435028460,1.43998438,949.21,947.71,0.18338133]
[1768435028654,1.43998438,949.2,947.71,0.18338133]
[1768435028852,1.43998438,949.19,947.71,0.18338133]
[1768435029157,1.43998438,949.18,947.71,0.18338133]
[1768435029458,1.43998438,949.17,947.71,0.18338133]
[1768435029754,1.43998438,949.16,947.71,0.18338133]
[1768435030054,1.43998438,949.15,947.71,0.18338133]
[1768435030352,1.43998438,949.14,947.71,0.18338133]
[1768435030554,1.43998438,949.13,947.71,0.18338133]
[1768435030754,1.43998438,949.12,947.71,0.18338133]
[1768435030952,1.43998438,949.11,947.71,0.18338133]
[1768435031157,0.75623577,949.1,947.71,0.18338133]
[1768435031454,0.75623577,949.09,947.71,0.18338133]
[1768435031653,0.75623577,949.08,947.71,0.18338133]
[1768435031853,0.75623577,949.07,947.71,0.18338133]
[1768435032154,0.75604418,949.06,947.71,0.18338133]
[1768435032358,0.75604418,949.05,947.71,0.18338133]
[1768435032655,0.75604418,949.04,947.71,0.18338133]
[1768435032955,0.75604418,949.03,947.71,0.18338133]
[1768435033258,0.75604418,949.02,947.71,0.18338133]
[1768435033455,0.75604418,949.01,947.71,0.18338133]
[1768435033758,0.75604418,949.0,947.71,0.18338133]
[1768435033955,0.75604418,948.99,947.71,0.18338133]
[1768435034155,0.75604418,948.98,947.71,0.18338133]
[1768435034458,0.75604418,948.97,947.71,0.18338133]
[1768435034658,0.75604418,948.96,947.71,0.18338133]
[1768435034856,0.75604418,948.95,947.71,0.18338133]
[1768435035058,0.75604418,948.94,947.71,0.18338133]
[1768435035258,0.75604418,948.93,947.71,0.18338133]
[1768435035558,0.75604418,948.92,947.71,0.18338133]
[1768435035758,0.75604418,948.91,947.71,0.18338133]
[1768435035954,0.75604418,948.9,947.71,0.18338133]
[1768435036154,0.75604418,948.89,947.71,0.18338133]
[1768435036359,0.75604418,948.88,947.71,0.18338133]
[1768435036655,0.75604418,948.87,947.71,0.18338133]
[1768435036855,0.75604418,948.86,947.71,0.18338133]
[1768435037055,0.75604418,948.85,947.71,0.18338133]
[1768435037354,0.75604418,948.84,947.71,0.18338133]
[1768435037652,0.75604418,948.83,947.71,0.18338133]
[1768435037853,1.767,949.4,947.71,0.18338133]
[1768435037854,0.75604418,948.82,947.71,0.18338133]
[1768435038151,0.75604418,948.81,947.71,0.18338133]
[1768435038353,0.75604418,948.8,947.71,0.18338133]
[1768435038557,0.75604418,948.79,947.71,0.18338133]
[1768435038756,0.75604418,948.78,947.71,0.18338133]
[1768435038958,0.75604418,948.77,947.71,0.18338133]
[1768435039158,0.75604418,948.76,947.71,0.18338133]
[1768435039455,0.75604418,948.75,947.71,0.18338133]
[1768435039755,0.75604418,948.74,947.71,0.18338133]
[1768435039958,0.75604418,948.73,947.71,0.18338133]
[1768435040159,0.75604418,948.72,947.71,0.18338133]
[1768435040462,0.75604418,948.71,947.71,0.18338133]
[1768435040660,0.75604418,948.7,947.71,0.18338133]
[1768435040959,0.75604418,948.69,947.71,0.18338133]
[1768435041155,5.33063939,949.65,947.71,0.18338133]
[1768435041156,0.75604418,948.68,947.71,0.18338133]
[1768435041356,0.75604418,948.67,947.71,0.18338133]
[1768435041561,0.75604418,948.66,947.71,0.18338133]
[1768435041756,0.75604418,948.65,947.71,0.18338133]
[1768435041962,0.75604418,948.64,947.71,0.18338133]
[1768435042162,0.75604418,948.63,947.71,0.18338133]
[1768435042363,0.75604418,948.62,947.71,0.18338133]
[1768435042560,0.75604418,948.61,947.71,0.18338133]
[1768435042760,0.75604418,948.6,947.71,0.18338133]
[1768435042960,0.75604418,948.59,947.71,0.18338133]
[1768435043159,0.75604418,948.58,947.71,0.18338133]
[1768435043359,0.75604418,948.57,947.71,0.18338133]
[1768435043563,0.75604418,948.56,947.71,0.18338133]
[1768435043765,0.75604418,948.55,947.71,0.18338133]
[1768435043965,0.75604418,948.54,947.71,0.18338133]
[1768435044162,0.75604418,948.53,947.71,0.18338133]
[1768435044367,0.75604418,948.52,947.71,0.18338133]
[1768435044563,0.75604418,948.51,947.71,0.18338133]
[1768435044765,0.75604418,948.5,947.71,0.18338133]
[1768435044962,0.75604418,948.49,947.71,0.18338133]
[1768435045162,0.75604418,948.48,947.71,0.18338133]
[1768435045462,0.75604418,948.47,947.71,0.18338133]
[1768435045667,0.75604418,948.46,947.71,0.18338133]
[1768435045863,0.75604418,948.45,947.71,0.18338133]
[1768435046064,0.75604418,948.44,947.71,0.18338133]
[1768435046367,0.75604418,948.43,947.71,0.18338133]
[1768435046567,0.75604418,948.42,947.71,0.18338133]
[1768435046765,0.75604418,948.41,947.71,0.18338133]
[1768435046969,0.75604418,948.4,947.71,0.18338133]
[1768435047163,0.75604418,948.39,947.71,0.18338133]
[1768435047468,0.75604418,948.38,947.71,0.18338133]
[1768435047668,0.75604418,948.37,947.71,0.18338133]
[1768435047868,0.75604418,948.36,947.71,0.18338133]
[1768435048065,0.75604418,948.35,947.71,0.18338133]
[1768435048269,0.75604418,948.34,947.71,0.18338133]
[1768435048466,0.75604418,948.33,947.71,0.18338133]
[1768435048670,0.75604418,948.32,947.71,0.18338133]
[1768435048869,0.75604418,948.31,947.71,0.18338133]
[1768435049073,0.75604418,948.3,947.71,0.18338133]
[1768435049272,0.75604418,948.29,947.71,0.18338133]
[1768435049572,0.75604418,948.28,947.71,0.18338133]
[1768435049872,0.75604418,948.27,947.71,0.18338133]
[1768435050072,0.75604418,948.26,947.71,0.18338133]
[1768435050269,0.75604418,948.25,947.71,0.18338133]
[1768435050470,0.75604418,948.24,947.71,0.18338133]
[1768435050672,0.75604418,948.23,947.71,0.18338133]
[1768435050870,0.75604418,948.22,947.71,0.18338133]
[1768435051072,0.75604418,948.21,947.71,0.18338133]
[1768435051270,0.75604418,948.2,947.71,0.18338133]
[1768435051467,0.75604418,948.19,947.71,0.18338133]
[1768435051668,0.75604418,948.18,947.71,0.18338133]
[1768435051968,0.75604418,948.17,947.71,0.18338133]
[1768435052270,0.75604418,948.16,947.71,0.18338133]
[1768435052473,0.75604418,948.15,947.71,0.18338133]
[1768435052773,0.75604418,948.14,947.71,0.18338133]
[1768435052973,0.75604418,948.13,947.71,0.18338133]
[1768435053173,2.459,948.52,947.71,0.18338133]
[1768435053372,0.75404473,948.51,947.71,0.18338133]
[1768435053569,0.75404473,948.5,947.71,0.18338133]
[1768435053772,0.75404473,948.49,947.71,0.18338133]
[1768435053972,0.75404473,948.48,947.71,0.18338133]
[1768435054173,0.75404473,948.47,947.71,0.18338133]
[1768435054369,0.75404473,948.46,947.71,0.18338133]
[1768435054570,0.75404473,948.45,947.71,0.18338133]
[1768435054872,0.75404473,948.44,947.71,0.18338133]
[1768435055070,0.75404473,948.43,947.71,0.18338133]
[1768435055269,0.75404473,948.42,947.71,0.18338133]
[1768435055474,0.75404473,948.41,947.71,0.18338133]
[1768435055673,0.75404473,948.4,947.71,0.18338133]
[1768435055969,0.75404473,948.39,947.71,0.18338133]
[1768435056170,0.75404473,948.38,947.71,0.18338133]
[1768435056369,2.459,948.52,947.71,0.18338133]
[1768435056370,0.75404473,948.37,947.71,0.18338133]
[1768435056570,0.75404473,948.36,947.71,0.18338133]
[1768435056770,0.75404473,948.35,947.71,0.18338133]
[1768435056972,0.75404473,948.34,947.71,0.18338133]
[1768435057169,0.75404473,948.33,947.71,0.18338133]
[1768435057373,0.75404473,948.32,947.71,0.18338133]
[1768435057576,0.75404473,948.31,947.71,0.18338133]
[1768435057771,0.75404473,948.3,947.71,0.18338133]
[1768435057974,0.75404473,948.29,947.71,0.18338133]
[1768435058176,0.75404473,948.28,947.71,0.18338133]
[1768435058372,0.75404473,948.27,947.71,0.18338133]
[1768435058578,0.75404473,948.26,947.71,0.18338133]
[1768435058774,0.75404473,948.25,947.71,0.18338133]
[1768435058974,0.75404473,948.24,947.71,0.18338133]
[1768435059178,0.75404473,948.23,947.71,0.18338133]
[1768435059377,2.459,948.52,947.71,0.18338133]
[1768435059378,0.75404473,948.22,947.71,0.18338133]
[1768435059580,0.75404473,948.21,947.71,0.18338133]
[1768435059776,0.75404473,948.2,947.71,0.18338133]
[1768435059981,0.75404473,948.19,947.71,0.18338133]
[1768435060175,0.75404473,948.18,947.71,0.18338133]
[1768435060378,0.75404473,948.17,947.71,0.18338133]
[1768435060576,0.75404473,948.16,947.71,0.18338133]
[1768435060777,0.75404473,948.15,947.71,0.18338133]
[1768435061078,0.75404473,948.14,947.71,0.18338133]
[1768435061281,2.459,948.52,947.71,0.18338133]
[1768435061580,0.75371774,948.51,947.71,0.18338133]
[1768435061776,0.75371774,948.5,947.71,0.18338133]
[1768435062079,0.75371774,948.49,947.71,0.18338133]
[1768435062277,0.75371774,948.48,947.71,0.18338133]
[1768435062580,0.75371774,948.47,947.71,0.18338133]
[1768435062781,0.75371774,948.46,947.71,0.18338133]
[1768435062980,0.75371774,948.45,947.71,0.18338133]
[1768435063180,0.75371774,948.44,947.71,0.18338133]
[1768435063381,0.75371774,948.43,947.71,0.18338133]
[1768435063582,0.75371774,948.42,947.71,0.18338133]
[1768435063882,0.75371774,948.41,947.71,0.18338133]
[1768435064081,0.75371774,948.4,947.71,0.18338133]
[1768435064381,0.75371774,948.39,947.71,0.18338133]
[1768435064676,0.75371774,948.38,947.71,0.18338133]
[1768435064880,0.75371774,948.37,947.71,0.18338133]
[1768435065081,0.75371774,948.36,947.71,0.18338133]
[1768435065277,0.75371774,948.35,947.71,0.18338133]
[1768435065483,0.75371774,948.34,947.71,0.18338133]
[1768435065776,0.75371774,948.33,947.71,0.18338133]
[1768435065978,0.75371774,948.32,947.71,0.18338133]
[1768435066179,0.75371774,948.31,947.71,0.18338133]
[1768435066382,0.75371774,948.3,947.71,0.18338133]
[1768435066579,0.75371774,948.29,947.71,0.18338133]
[1768435066780,0.75371774,948.28,947.71,0.18338133]
[1768435066984,0.75371774,948.27,947.71,0.18338133]
[1768435067183,0.75371774,948.26,947.71,0.18338133]
[1768435067385,0.75371774,948.25,947.71,0.18338133]
[1768435067580,0.75371774,948.24,947.71,0.18338133]
[1768435067880,2.24,948.35,947.71,0.18338133]
[1768435067881,0.75371774,948.23,947.71,0.18338133]
[1768435068086,0.75371774,948.22,947.71,0.18338133]
[1768435068380,0.75371774,948.21,947.71,0.18338133]
[1768435068586,0.75371774,948.2,947.71,0.18338133]
[1768435068882,0.75371774,948.19,947.71,0.18338133]
[1768435069086,0.75371774,948.18,947.71,0.18338133]
[1768435069283,0.75371774,948.17,947.71,0.18338133]
[1768435069483,0.75371774,948.16,947.71,0.18338133]
[1768435069687,0.75371774,948.15,947.71,0.18338133]
[1768435069887,0.75371774,948.14,947.71,0.18338133]
[1768435070186,2.24,948.35,947.71,0.18338133]
[1768435070384,0.75385317,948.34,947.71,0.18338133]
[1768435070683,0.75385317,948.33,947.71,0.18338133]
[1768435070888,0.75385317,948.32,947.71,0.18338133]
[1768435071088,0.75385317,948.31,947.71,0.18338133]
[1768435071289,0.75385317,948.3,947.71,0.18338133]
[1768435071490,0.75385317,948.29,947.71,0.18338133]
[1768435071691,0.75385317,948.28,947.71,0.18338133]
[1768435071887,0.75385317,948.27,947.71,0.18338133]
[1768435072087,0.75385317,948.26,947.71,0.18338133]
[1768435072386,0.75385317,948.25,947.71,0.18338133]
[1768435072591,0.75385317,948.24,947.71,0.18338133]
[1768435072792,0.75385317,948.23,947.71,0.18338133]
[1768435072989,0.75385317,948.22,947.71,0.18338133]
[1768435073192,0.75385317,948.21,947.71,0.18338133]
[1768435073392,0.75385317,948.2,947.71,0.18338133]
[1768435073594,0.75385317,948.19,947.71,0.18338133]
[1768435073789,0.75385317,948.18,947.71,0.18338133]
[1768435073990,0.75385317,948.17,947.71,0.18338133]
[1768435074192,0.75385317,948.16,947.71,0.18338133]
[1768435074390,0.75385317,948.15,947.71,0.18338133]
[1768435074693,0.75385317,948.14,947.71,0.18338133]
[1768435074888,0.75385317,948.13,947.71,0.18338133]
[1768435075089,2.24,948.35,947.71,0.18338133]
[1768435075290,0.75411572,948.34,947.71,0.18338133]
[1768435075494,0.75411572,948.33,947.71,0.18338133]
[1768435075691,0.75411572,948.32,947.71,0.18338133]
[1768435075890,0.75411572,948.31,947.71,0.18338133]
[1768435076096,0.75411572,948.3,947.71,0.18338133]
[1768435076395,0.75411572,948.29,947.71,0.18338133]
[1768435076595,0.75411572,948.28,947.71,0.18338133]
[1768435076792,0.75411572,948.27,947.71,0.18338133]
[1768435076995,0.75411572,948.26,947.71,0.18338133]
[1768435077292,0.75411572,948.25,947.71,0.18338133]
[1768435077493,0.75411572,948.24,947.71,0.18338133]
[1768435077693,2.24,948.35,947.71,0.18338133]
[1768435077694,0.75411572,948.23,947.71,0.18338133]
[1768435077891,0.75411572,948.22,947.71,0.18338133]
[1768435078092,0.75411572,948.21,947.71,0.18338133]
[1768435078292,0.75411572,948.2,947.71,0.18338133]
[1768435078491,0.75411572,948.19,947.71,0.18338133]
[1768435078695,0.75411572,948.18,947.71,0.18338133]
[1768435078893,2.24,948.35,947.71,0.18338133]
[1768435078894,0.75411572,948.17,947.71,0.18338133]
[1768435079093,0.75411572,948.16,947.71,0.18338133]
[1768435079293,0.75411572,948.15,947.71,0.18338133]
[1768435079494,0.75411572,948.14,947.71,0.18338133]
[1768435079698,0.75411572,948.13,947.71,0.18338133]
[1768435079895,0.75411572,948.12,947.71,0.18338133]
[1768435080095,0.75411572,948.11,947.71,0.18338133]
[1768435080295,0.75411572,948.1,947.71,0.18338133]
[1768435080494,0.75411572,948.09,947.71,0.18338133]
[1768435080694,2.24,948.35,947.71,0.18338133]
[1768435080895,0.75479987,948.34,947.71,0.18338133]
[1768435081196,0.75479987,948.33,947.71,0.18338133]
[1768435081399,0.75479987,948.32,947.71,0.18338133]
[1768435081698,0.75479987,948.31,947.71,0.18338133]
[1768435081896,0.75479987,948.3,947.71,0.18338133]
[1768435082096,0.75479987,948.29,947.71,0.18338133]
[1768435082294,0.75479987,948.28,947.71,0.18338133]
[1768435082500,0.75479987,948.27,947.71,0.18338133]
[1768435082798,0.75479987,948.26,947.71,0.18338133]
[1768435082999,0.75479987,948.25,947.71,0.18338133]
[1768435083200,0.75479987,948.24,947.71,0.18338133]
[1768435083495,0.75479987,948.23,947.71,0.18338133]
[1768435083699,0.75479987,948.22,947.71,0.18338133]
[1768435083898,2.24,948.35,947.71,0.18338133]
[1768435083899,0.75479987,948.21,947.71,0.18338133]
[1768435084098,0.75479987,948.2,947.71,0.18338133]
[1768435084396,0.75479987,948.19,947.71,0.18338133]
[1768435084595,0.75479987,948.18,947.71,0.18338133]
[1768435084796,0.75479987,948.17,947.71,0.18338133]
[1768435084995,0.75479987,948.16,947.71,0.18338133]
[1768435085196,0.75479987,948.15,947.71,0.18338133]
[1768435085400,0.75594306,948.14,947.71,0.18338133]
[1768435085597,0.75594306,948.13,947.71,0.18338133]
[1768435085900,0.75594306,948.12,947.71,0.18338133]
[1768435086101,0.75594306,948.11,947.71,0.18338133]
[1768435086397,0.75594306,948.1,947.71,0.18338133]
[1768435086599,0.75594306,948.09,947.71,0.18338133]
[1768435086798,0.75594306,948.08,947.71,0.18338133]
[1768435087098,0.75594306,948.07,947.71,0.18338133]
[1768435087302,0.75594306,948.06,947.71,0.18338133]
[1768435087496,0.75594306,948.05,947.71,0.18338133]
[1768435087698,0.75594306,948.04,947.71,0.18338133]
[1768435087899,0.75594306,948.03,947.71,0.18338133]
[1768435088100,0.75594306,948.02,947.71,0.18338133]
[1768435088298,0.75594306,948.01,947.71,0.18338133]
[1768435088501,0.75594306,948.0,947.71,0.18338133]
[1768435088696,0.75594306,947.99,947.71,0.18338133]
[1768435088900,0.75594306,947.98,947.71,0.18338133]
[1768435089098,2.24,948.35,947.71,0.18338133]
[1768435089297,0.75745222,948.34,947.71,0.18338133]
[1768435089496,0.75745222,948.33,947.71,0.18338133]
[1768435089698,0.75745222,948.32,947.71,0.18338133]
[1768435090002,0.75745222,948.31,947.71,0.18338133]
[1768435090202,0.75745222,948.3,947.71,0.18338133]
[1768435090498,0.75745222,948.29,947.71,0.18338133]
[1768435090804,0.75858085,948.28,947.71,0.18338133]
[1768435091098,0.75858085,948.27,947.71,0.18338133]
[1768435091299,0.75858085,948.26,947.71,0.18338133]
[1768435091498,0.75858085,948.25,947.71,0.18338133]
[1768435091700,0.75858687,948.24,947.71,0.18338133]
[1768435091902,0.75858687,948.23,947.71,0.18338133]
[1768435092100,0.75858687,948.22,947.71,0.18338133]
[1768435092300,0.75858687,948.21,947.71,0.18338133]
[1768435092500,2.24,948.35,947.71,0.18338133]
[1768435092501,0.75858687,948.2,947.71,0.18338133]
[1768435092698,0.75858687,948.19,947.71,0.18338133]